Cogmind - Beta 11.1 @@@ ROGUE MODE // 2022.05.03 @ 20:30:56 Player: Olga Result: Destroyed by B-75 Beast with Magnetic Acceleration Cannon Performance ------------- Evolutions (3) 1500 Regions Visited (9) 1800 Robots Destroyed (42) 210 Value Destroyed (762) 762 Prototype IDs (8) 160 Alien Tech Used (0) 0 Bonus (26) 26 TOTAL SCORE: 4458 Bonus ------- High Alert Combat Kills 26 Cogmind --------- Core Integrity 0/700 Matter 300/300 Energy 150/150 System Corruption 0% Temperature Cool (0) Movement Flying (32) Location -7/Lower Caves Parts ------- > --- POWER (1) -------- Micro Nuclear Core > --- PROPULSION (4) --- Improved Cesium-ion Thruster Improved Cesium-ion Thruster > --- UTILITY (6) ------ Advanced Visual Processing Unit Hacking Suite Hacking Suite > --- WEAPON (2) ------- (None) > --- INVENTORY (5) ---- Cooled Nuclear Pulse Thruster Advanced Weight Redist. System Makeshift System Shield Authchip [Device] System Restoration Module Peak State ------------ > --- POWER ------------ Micro Nuclear Core > --- PROPULSION ------- VTOL Module Improved Cesium-ion Thruster Improved Cesium-ion Thruster > --- UTILITY ---------- Structural Scanner Advanced Visual Processing Unit Advanced Terrain Scan Processor Hardened Light Armor Plating Hacking Suite Hacking Suite > --- WEAPON ----------- Mini Grenade Launcher Scythe > --- INVENTORY -------- Cooled Nuclear Pulse Thruster Advanced Weight Redist. System Improved Medium Armor Plating Authchip [Device] System Restoration Module [Rating: 39] Favorites ----------- Power Micro Nuclear Core Engine Light Ion Engine Power Core Micro Nuclear Core Propulsion Flight Unit Leg Aluminum Leg Hover Unit Airjet Flight Unit Flight Unit Utility Structural Scanner Device Structural Scanner Storage Small Storage Unit Processor Advanced Visual Processing Unit Hackware Hacking Suite Protection Hardened Light Armor Plating Weapon Scythe Energy Gun Small Laser Ballistic Gun Improved Assault Rifle Ballistic Cannon Battle Cannon Launcher Mini Grenade Launcher Slashing Weapon Scythe Build | -11 -10 -10 -9 -9 -8 -7 -7 -7 -7 ------- Run | Scr Mat Min Mat Min Mat Fac Was Fac Low Slots Evolved 6 | . . . 2 . 2 2 . . . Power . | . . . . . . . . . . Propulsion 2 | . . . 1 . 1 . . . . Utility 4 | . . . 1 . 1 2 . . . Weapon . | . . . . . . . . . . Parts Attached 71 | . 2 1 17 4 14 12 2 17 2 Power 4 | . . . 1 . 1 1 . 1 . Engine 3 | . . . 1 . 1 1 . . . Core 1 | . . . . . . . . 1 . Reactor . | . . . . . . . . . . Propulsion 25 | . . . 5 3 4 5 2 5 1 Treads . | . . . . . . . . . . Leg . | . . . . . . . . . . Wheel . | . . . . . . . . . . Hover 5 | . . . . . . 4 . 1 . Flight 20 | . . . 5 3 4 1 2 4 1 Utility 23 | . 2 . 3 . 5 3 . 9 1 Device 3 | . . . . . 1 . . 1 1 Storage 2 | . . . 1 . . 1 . . . Processor 8 | . 2 . . . 1 1 . 4 . Hackware 3 | . . . . . . . . 3 . Protection 7 | . . . 2 . 3 1 . 1 . Artifact . | . . . . . . . . . . Weapon 19 | . . 1 8 1 4 3 . 2 . Energy Gun . | . . . . . . . . . . Energy Cannon . | . . . . . . . . . . Ballistic Gun 2 | . . . 1 . 1 . . . . Ballistic Cannon 5 | . . 1 3 . 1 . . . . Launcher 8 | . . . 4 1 1 1 . 1 . Special Weapon . | . . . . . . . . . . Impact Weapon . | . . . . . . . . . . Slashing Weapon 4 | . . . . . 1 2 . 1 . Piercing Weapon . | . . . . . . . . . . Special Melee Weapon . | . . . . . . . . . . Unidentified Prototypes 4 | . . . 1 . . 1 1 1 . Parts Lost 18 | . . . 3 . 4 4 . 2 5 Power . | . . . . . . . . . . Propulsion 12 | . . . 2 . 4 4 . 1 1 Utility 4 | . . . 1 . . . . . 3 Weapon 2 | . . . . . . . . 1 1 Highest Loss Streak 5 | . . . 2 . 3 2 . 1 5 To Critical Strikes . | . . . . . . . . . . Average Slot Usage (%) 65 | . 81 73 71 85 83 36 36 66 78 Engine 1 | . . . 2 . 8 . . . . Core 1 | . . . . . . . . 1 7 Leg 3 | . 28 28 7 . . . . . . Hover 1 | . . . . . . 6 . . . Flight 15 | . . . 21 33 34 . 10 15 22 Device 5 | . . . . . 5 7 7 9 6 Storage 3 | . . . 6 11 9 4 . . . Processor 14 | . 24 28 17 11 9 9 10 17 7 Hackware 4 | . . . . . . . . 7 21 Protection 2 | . . . 2 11 7 1 . 2 5 Ballistic Gun 1 | . 14 2 2 11 6 . . . . Ballistic Cannon 1 | . . 11 5 . . . . . . Launcher 2 | . . . 5 8 . 1 . 3 . Slashing Weapon 3 | . . . . . 2 4 7 6 5 Naked Turns . | . . . . . . . . . . Heaviest Build 17 | 10 10 3 12 12 16 17 3 15 14 Greatest Support 25 | 20 20 3 12 12 16 25 3 16 16 Greatest Overweight (x) 1 | . . . 1 . . 1 . . . Average Overweight (x) . | . . . . . . . . . . Largest Inventory Capacity 8 | . 8 5 8 8 8 8 5 5 5 Average Capacity 6 | . 5 5 6 8 8 6 5 5 5 Most Carried 8 | . 6 5 8 8 8 8 5 5 5 Average Carried 5 | . 4 4 5 7 7 6 4 4 4 Final Capacity 8 | 8 5 5 8 8 8 5 5 5 5 Final Carried 8 | 6 5 5 8 8 8 5 4 5 5 Class Distribution -------------------- 64% | Mutant 21% | Hacker-Sprinter 12% | Scavenger-Sprinter Dominant Class ---------------- Mutant | -10/Materials Mutant | -10/Mines Mutant | -9/Materials Scavenger-Mutant | -9/Mines Scavenger-Sprinter | -8/Materials Mutant | -7/Factory Mutant | -7/Waste Mutant | -7/Factory Hacker-Sprinter | -7/Lower Caves Resources | -11 -10 -10 -9 -9 -8 -7 -7 -7 -7 ----------- Run | Scr Mat Min Mat Min Mat Fac Was Fac Low Matter Collected 1167 | 200 . 25 293 127 143 159 . 180 40 Remotely . | . . . . . . . . . . Salvage Created 980 | . . 62 326 127 107 66 . 292 . Parts 72 | . . 2 27 12 6 9 . 16 . Haulers Intercepted 5 | . . . 2 . 2 . . 1 . Recyclers Shooed . | . . . . . . . . . . Parts Field Recycled . | . . . . . . . . . . Retrieved Matter . | . . . . . . . . . . Parts Self-Destructed . | . . . . . . . . . . Prevented . | . . . . . . . . . . Kills | -11 -10 -10 -9 -9 -8 -7 -7 -7 -7 ------- Run | Scr Mat Min Mat Min Mat Fac Was Fac Low Combat Hostiles Destroyed 27 | . . 2 15 4 1 1 . 4 . Melee 1 | . . . . . . . . 1 . Guns 4 | . . . 1 3 . . . . . Cannons 3 | . . 2 . . 1 . . . . AOE 19 | . . . 14 1 . 1 . 3 . Classes Destroyed 9 | . . 1 5 . . 3 . . . Worker 3 | . . . . . . 1 . 2 . Builder 1 | . . . . . . 1 . . . Hauler 5 | . . . 2 . 2 . . 1 . Recycler 3 | . . . 1 1 . . . 1 . Watcher 3 | . . . 1 . . . . 2 . Swarmer 17 | . . . 10 4 . . . 3 . Grunt 7 | . . 2 4 . 1 . . . . Sentry 1 | . . . 1 . . . . . . Programmer 2 | . . . . . . 1 . 1 . Best Kill Streak 9 | . . 2 9 5 2 1 . 4 . Combat Bots Only 8 | . . 2 8 4 1 1 . 3 . Max Kills in Single Turn 3 | . . 1 3 2 1 1 . 1 . Gunslinging . | . . . . . . . . . . Exploded 3 | . . . 3 1 . 1 . 1 . Melee 1 | . . . . . . . . 1 . Uniques/NPCs Destroyed . | . . . . . . . . . . Combat | -11 -10 -10 -9 -9 -8 -7 -7 -7 -7 -------- Run | Scr Mat Min Mat Min Mat Fac Was Fac Low Damage Taken 2145 | . . 77 290 34 323 522 . 392 507 Core 843 | . . 16 54 10 44 254 . 179 286 Absorbed by Shields . | . . . . . . . . . . Regen/Repaired (Parts) 30 | . . . . . 30 . . . . Core Remaining (%) 92 | 100 . 93 . 84 92 . . . . Volleys Fired 46 | . . 6 17 7 10 3 . 3 . Largest 2 | . . 1 2 2 2 1 . 1 . Hottest 62 | . . 39 62 53 62 30 . 30 . Shots Fired 54 | . . 6 21 8 13 3 . 3 . Gun 22 | . . . 5 7 10 . . . . Cannon 13 | . . 6 4 . 3 . . . . Launcher 19 | . . . 12 1 . 3 . 3 . Special . | . . . . . . . . . . Kinetic 35 | . . 6 9 7 13 . . . . Thermal . | . . . . . . . . . . Explosive 19 | . . . 12 1 . 3 . 3 . Electromagnetic . | . . . . . . . . . . Robot Hit Streak 16 | . . 4 9 12 16 1 . 2 . Robot Miss Streak 4 | . . 1 1 . 4 2 . 1 . Penetration Max . | . . . . . . . . . . Secondary Targets . | . . . . . . . . . . Shots Hit Robots 60 | . . 5 14 7 10 3 . 21 . Core Hits 55 | . . 3 25 6 5 6 . 10 . Critical Kills . | . . . . . . . . . . Critical Parts Destroyed . | . . . . . . . . . . Critical Strikes 1 | . . . . . . . . 1 . Sever 1 | . . . . . . . . 1 . Melee Attacks 34 | . . . . . 4 4 . 26 . Impact . | . . . . . . . . . . Slashing 34 | . . . . . 4 4 . 26 . Piercing . | . . . . . . . . . . Sneak Attacks 6 | . . . . . . 2 . 4 . Combat Hostiles . | . . . . . . . . . . Follow-up Attacks . | . . . . . . . . . . Damage Inflicted 3013 | . . 97 1304 127 180 200 . 1105 . Guns 278 | . . . 59 109 110 . . . . Cannons 227 | . . 97 60 . 70 . . . . Explosions 1563 | . . . 1185 18 . 67 . 293 . Melee 945 | . . . . . . 133 . 812 . Ramming . | . . . . . . . . . . Kinetic 505 | . . 97 119 109 180 . . . . Thermal . | . . . . . . . . . . Explosive 1563 | . . . 1185 18 . 67 . 293 . Electromagnetic . | . . . . . . . . . . Impact . | . . . . . . . . . . Slashing 945 | . . . . . . 133 . 812 . Piercing . | . . . . . . . . . . Highest Corruption 2 | . . . . . 2 . . . . Average Corruption 2 | . . . . . 2 . . . . Corruption Purged . | . . . . . . . . . . Corruption Blocked 8 | . . . . . . . 8 . . Effects 1 | . . . . . 1 . . . . Heat Flow Errors 1 | . . . . . 1 . . . . Overload Shots . | . . . . . . . . . . Overflow Damage 153 | . . . 38 . . 16 . 99 . Projectiles . | . . . . . . . . . . Explosions 104 | . . . 38 . . 16 . 50 . Melee 49 | . . . . . . . . 49 . Knockbacks 3 | . . 2 . . 1 . . . . Impact . | . . . . . . . . . . Kinetic 3 | . . 2 . . 1 . . . . Secondary . | . . . . . . . . . . Self-Inflicted Damage 135 | . . . 48 . . 47 . 40 . Shots 8 | . . . 4 . . 2 . 2 . Rammed . | . . . . . . . . . . Targets Rammed . | . . . . . . . . . . Kicked . | . . . . . . . . . . Crushed . | . . . . . . . . . . Highest Temperature 284 | . . 19 4 . 284 . . 1 16 Average Temperature 44 | . . 8 2 . 69 . . 1 5 Received Heat Transfer 606 | . . 42 63 . 126 165 . 99 111 Siege Activations . | . . . . . . . . . . Robots Corrupted . | . . . . . . . . . . Combat Hostiles . | . . . . . . . . . . Parts Fried . | . . . . . . . . . . Impact Corruptions . | . . . . . . . . . . Robots Melted . | . . . . . . . . . . Combat Hostiles . | . . . . . . . . . . Parts Melted . | . . . . . . . . . . Heat Transferred . | . . . . . . . . . . Parts Sabotaged . | . . . . . . . . . . Parts Stolen . | . . . . . . . . . . Parts Stripped . | . . . . . . . . . . Power Chain Reactions . | . . . . . . . . . . Missiles Intercepted . | . . . . . . . . . . Alert | -11 -10 -10 -9 -9 -8 -7 -7 -7 -7 ------- Run | Scr Mat Min Mat Min Mat Fac Was Fac Low Peak Influence 603 | . 45 67 494 302 315 405 186 603 . Initial 192 | . . 17 26 192 117 138 141 116 . Average 237 | . 11 23 252 261 198 265 159 310 . Maximum Alert Level 2 | . . . 2 1 1 2 . 2 . Low Security (%) 46 | . 100 100 36 28 58 27 100 37 . Level 1 36 | . . . 43 71 41 58 . 28 . Level 2 16 | . . . 20 . . 14 . 33 . Level 3 . | . . . . . . . . . . Level 4 . | . . . . . . . . . . Level 5 . | . . . . . . . . . . High Security . | . . . . . . . . . . Max Security . | . . . . . . . . . . Squads Dispatched 12 | . 1 . 3 . 2 1 . 5 . Investigation 5 | . . . 2 . . . . 3 . Extermination 2 | . . . . . . . . 2 . Reinforcement 5 | . 1 . 1 . 2 1 . . . Assault . | . . . . . . . . . . Garrison . | . . . . . . . . . . Intercept . | . . . . . . . . . . Searches Triggered 1 | . . . . . . . . 1 . Construction Impeded . | . . . . . . . . . . Haulers Reinforced . | . . . . . . . . . . Active Scanning Responses . | . . . . . . . . . . Cargo Convoy Interrupts . | . . . . . . . . . . Stealth | -11 -10 -10 -9 -9 -8 -7 -7 -7 -7 --------- Run | Scr Mat Min Mat Min Mat Fac Was Fac Low Distress Signals 6 | . . . 1 . 3 . . 2 . Communications Jammed . | . . . . . . . . . . Distress Signals . | . . . . . . . . . . Times Spotted 132 | . 4 2 22 4 24 16 6 41 13 Peak Tracking Total 16 | . 3 2 6 4 16 7 6 9 9 Tactical Retreats 23 | . . . 2 . 4 5 . 8 4 Traps | -11 -10 -10 -9 -9 -8 -7 -7 -7 -7 ------- Run | Scr Mat Min Mat Min Mat Fac Was Fac Low Traps Triggered 4 | . . . . . 2 2 . . . Indirectly . | . . . . . . . . . . Trap Hack Attempts . | . . . . . . . . . . Triggered . | . . . . . . . . . . Disarmed . | . . . . . . . . . . Reprogrammed . | . . . . . . . . . . Reused . | . . . . . . . . . . Traps Extracted . | . . . . . . . . . . Installed . | . . . . . . . . . . Triggered . | . . . . . . . . . . Machines | -11 -10 -10 -9 -9 -8 -7 -7 -7 -7 ---------- Run | Scr Mat Min Mat Min Mat Fac Was Fac Low Machines Disabled 1 | . . . 1 . . . . . . Max in Single Turn 1 | . . . 1 . . . . . . Machines Sabotaged . | . . . . . . . . . . Garrisons Compromised . | . . . . . . . . . . Overloaded Fab Kills . | . . . . . . . . . . Hacking | -11 -10 -10 -9 -9 -8 -7 -7 -7 -7 --------- Run | Scr Mat Min Mat Min Mat Fac Was Fac Low Machines Accessed 24 | . . . 8 . 5 1 . 10 . Terminals 18 | . . . 7 . 4 1 . 6 . Fabricators 2 | . . . . . . . . 2 . Repair Stations 1 | . . . . . 1 . . . . Recycling Units . | . . . . . . . . . . Scanalyzers 2 | . . . 1 . . . . 1 . Garrison Access 1 | . . . . . . . . 1 . Total Hacks 73 | . . . 26 . 15 6 . 26 . Successful 38 | . . . 14 . 7 4 . 13 . Failed 35 | . . . 12 . 8 2 . 13 . Catastrophic 4 | . . . 1 . 1 . . 2 . Database Lockouts . | . . . . . . . . . . Manual 55 | . . . 19 . 12 5 . 19 . Terminals 61 | . . . 25 . 13 6 . 17 . Fabricators 2 | . . . . . . . . 2 . Repair Stations 2 | . . . . . 2 . . . . Recycling Units . | . . . . . . . . . . Scanalyzers 5 | . . . 1 . . . . 4 . Garrison Access 3 | . . . . . . . . 3 . Terminal Hacks 16 | . . . 10 . 2 2 . 2 . Robot Analysis 2 | . . . 2 . . . . . . Prototype ID Bank 2 | . . . 1 . . 1 . . . Terminal Index 4 | . . . 1 . 1 1 . 1 . Unreport Threat 2 | . . . 2 . . . . . . Recall Investigation 1 | . . . 1 . . . . . . Recall Extermination 1 | . . . . . . . . 1 . Hauler Manifests 1 | . . . 1 . . . . . . Registered Components 1 | . . . 1 . . . . . . Zone Layout 2 | . . . 1 . 1 . . . . Fabricator Hacks . | . . . . . . . . . . Repair Station Hacks 2 | . . . . . 2 . . . . Scan Component 1 | . . . . . 1 . . . . Repair 1 | . . . . . 1 . . . . Recycling Unit Hacks . | . . . . . . . . . . Scanalyzer 3 | . . . . . . . . 3 . Insert Component 1 | . . . . . . . . 1 . Analyze 2 | . . . . . . . . 2 . Garrison Access Hacks . | . . . . . . . . . . Unauthorized Hacks 17 | . . . 4 . 3 2 . 8 . Terminals 15 | . . . 4 . 3 2 . 6 . Track 1 | . . . . . . 1 . . . Assimilate 2 | . . . . . . . . 2 . Botnet 12 | . . . 4 . 3 1 . 4 . Fabricators 2 | . . . . . . . . 2 . Recompile 2 | . . . . . . . . 2 . Repair Stations . | . . . . . . . . . . Recycling Units . | . . . . . . . . . . Scanalyzers . | . . . . . . . . . . Garrison Access . | . . . . . . . . . . Data Cores Recovered . | . . . . . . . . . . Used . | . . . . . . . . . . Hacking Detections 20 | . . . 7 . 4 1 . 8 . Full Trace Events 3 | . . . 2 . . . . 1 . Feedback Events . | . . . . . . . . . . Feedback Blocked . | . . . . . . . . . . Robot Schematics Acquired . | . . . . . . . . . . Robots Built . | . . . . . . . . . . Authchips . | . . . . . . . . . . Time . | . . . . . . . . . . Total Robot Build Rating . | . . . . . . . . . . Part Schematics Acquired . | . . . . . . . . . . Parts Built . | . . . . . . . . . . Authchips . | . . . . . . . . . . Time . | . . . . . . . . . . Total Part Build Rating . | . . . . . . . . . . Parts Repaired 1 | . . . . . 1 . . . . Time 26 | . . . . . 26 . . . . Parts Recycled . | . . . . . . . . . . Recycled Matter . | . . . . . . . . . . Retrieved Matter . | . . . . . . . . . . Retrieved Components . | . . . . . . . . . . Parts Scanalyzed 1 | . . . . . . . . 1 . Part Schematics Acquired . | . . . . . . . . . . Parts Damaged . | . . . . . . . . . . Bothacking | -11 -10 -10 -9 -9 -8 -7 -7 -7 -7 ------------ Run | Scr Mat Min Mat Min Mat Fac Was Fac Low Used RIF Installer . | . . . . . . . . . . Robots Hacked . | . . . . . . . . . . Non-combat . | . . . . . . . . . . Combat . | . . . . . . . . . . Robot Hacks Applied . | . . . . . . . . . . Relay Couplers Released . | . . . . . . . . . . Fabnet Peak Effective % . | . . . . . . . . . . Robots Rewired . | . . . . . . . . . . Allies Hacked . | . . . . . . . . . . Hacks Repelled . | . . . . . . . . . . Allies | -11 -10 -10 -9 -9 -8 -7 -7 -7 -7 -------- Run | Scr Mat Min Mat Min Mat Fac Was Fac Low Total Allies 3 | . . . . . . . 1 2 . Largest Group 2 | . . . . . . . 1 2 . Highest-Rated Group 31 | . . . . . . . 31 20 . Highest-Rated Ally 31 | . . . . . . . 31 10 . Total Orders . | . . . . . . . . . . Ally Attacks 17 | . . . . . . . 17 . . Total Damage 294 | . . . . . . . 294 . . Kills . | . . . . . . . . . . Allies Corrupted . | . . . . . . . . . . Allies Melted . | . . . . . . . . . . Intel | -11 -10 -10 -9 -9 -8 -7 -7 -7 -7 ------- Run | Scr Mat Min Mat Min Mat Fac Was Fac Low Robot Analysis Total 2 | . . . 2 . . . . . . Derelict Logs Recovered 2 | . . 1 . . . . . . 1 Drone Launches . | . . . . . . . . . . Drone Recoveries . | . . . . . . . . . . Exploration | -11 -10 -10 -9 -9 -8 -7 -7 -7 -7 ------------- Run | Scr Mat Min Mat Min Mat Fac Was Fac Low Turns Passed 1831 | . 41 131 260 45 236 351 54 504 209 Spaces Moved 3441 | 1 61 189 456 62 437 515 97 1032 591 Core 1158 | . 57 189 139 . . 336 97 340 . Treads . | . . . . . . . . . . Legs 5 | 1 4 . . . . . . . . Wheels . | . . . . . . . . . . Hover 168 | . . . . . . 168 . . . Flight 2110 | . . . 317 62 437 11 . 692 591 Fastest Speed 29 | 120 50 50 34 34 31 37 50 29 29 Average Speed 40 | 120 54 50 40 34 31 57 50 38 29 Slowest Speed 120 | 120 120 50 100 34 37 120 50 50 32 Overloaded Moves . | . . . . . . . . . . Propulsion Burnouts . | . . . . . . . . . . Robots Hopped 15 | . . . 4 . 8 . . 1 2 Cave-ins Triggered . | . . . . . . . . . . Exploration Rate (%) 41 | 2 19 56 56 24 55 23 84 28 72 Regions Visited 9 Branch Regions 3 Pre-discovered Areas 1 | . . 1 . . . . . . . Known Exits Taken 1 | . . . . . . . . 1 . Unknown Exits Taken 6 | 1 1 1 1 1 1 . . . . Scrap Searched 5 | . . . . . . . . . 5 Spaces Dug 6 | . . . . . 2 2 . 2 . Terrain Destroyed 137 | . . . 88 6 2 13 . 28 . Melee 6 | . . . . . 2 2 . 2 . Projectile . | . . . . . . . . . . AOE 131 | . . . 88 6 . 11 . 26 . Terrain Rammed . | . . . . . . . . . . Walls Destroyed . | . . . . . . . . . . Machines Disabled . | . . . . . . . . . . Actions | -11 -10 -10 -9 -9 -8 -7 -7 -7 -7 --------- Run | Scr Mat Min Mat Min Mat Fac Was Fac Low Total 3772 | . 70 219 505 82 508 565 101 1097 625 Wait 113 | . . 19 5 . 38 14 1 5 31 Move 3404 | . 60 188 448 61 420 515 96 1029 587 Hop 14 | . . . 3 . 8 . . 1 2 Pick Up 31 | . 2 1 7 4 4 4 1 6 2 Fast Attach 33 | . 2 1 6 . 4 7 1 11 1 Attach 22 | . . . 7 1 5 5 1 3 . Detach 12 | . 1 . 3 . 4 2 . 2 . Swap 16 | . . . 4 3 5 . . 3 1 Drop 46 | . 5 3 5 6 6 11 1 8 1 Fire 46 | . . 6 17 7 10 3 . 3 . Melee 34 | . . . . . 4 4 . 26 . Ram . | . . . . . . . . . . Kick . | . . . . . . . . . . Crush . | . . . . . . . . . . Escape Stasis . | . . . . . . . . . . Rewire 1 | . . 1 . . . . . . . Trap . | . . . . . . . . . . Miscellaneous . | . . . . . . . . . . Route ------- -11/Scrapyard -10/Materials -10/Mines -9/Materials (discovered 2 exits: [*Min x2]) -9/Mines -8/Materials -7/Factory -7/Waste -7/Factory -7/Lower Caves History --------- Turn | Location | Event 1 | -11/Scrapyard | Discovered new exit (range 0) 1 | -11/Scrapyard | Entered Materials 39 | -10/Materials | Discovered new exit (range 8) 42 | -10/Materials | Entered Mines 53 | -10/Mines | Received a Rocket Launcher from a helpful Derelict 64 | -10/Mines | A weapon hastily lodged in a ceiling crevice suddenly fell to the ground 85 | -10/Mines | Learned location of Mines (-9) 132 | -10/Mines | Discovered new exit (range 14) 173 | -10/Mines | Entered Materials 173 | -9/Materials | Evolved 2 slots: Propulsion x1, Utility x1 313 | -9/Materials | Build established: Mutant 324 | -9/Materials | Discovered new exit (range 6) 398 | -9/Materials | Destroyed 8 combat bots 431 | -9/Materials | Discovered new exit (range 7) 433 | -9/Materials | Entered Mines 445 | -9/Mines | Discovered new exit (range 6) 478 | -9/Mines | Entered Materials 478 | -8/Materials | Evolved 2 slots: Propulsion x1, Utility x1 611 | -8/Materials | Repaired Lgt. Armor Plating 706 | -8/Materials | Discovered new exit (range 20) 714 | -8/Materials | Entered Factory 714 | -7/Factory | Evolved 2 slots: Utility x2 740 | -7/Factory | Lost 3 parts (3n) 1027 | -7/Factory | Discovered new exit (range 9) 1065 | -7/Factory | Manually triggered Chute Trap 1065 | -7/Factory | Sucked down chute 1065 | -7/Factory | Entered Waste 1066 | -7/Waste | Met a frightened Derelict 1068 | -7/Waste | Spotted C-40 Crusher 1080 | -7/Waste | EMP discharged 1091 | -7/Waste | Spotted C-40 Crusher 1091 | -7/Waste | Spotted C-40 Crusher 1091 | -7/Waste | Spotted C-40 Crusher 1095 | -7/Waste | Spotted C-40 Crusher 1102 | -7/Waste | Spotted C-40 Crusher 1113 | -7/Waste | Discovered new exit (range 12) 1119 | -7/Waste | Entered Factory 1361 | -7/Factory | Discovered new exit (range 12) 1435 | -7/Factory | Core integrity fell below 50% 1519 | -7/Factory | Search patrols dispatched 1623 | -7/Factory | Identified exit to Lower Caves 1623 | -7/Factory | Entered Lower Caves 1625 | -7/Lower Caves | Attracted the attention of an 0b10 outpost 1654 | -7/Lower Caves | Learned 8 Factory zone layouts 1727 | -7/Lower Caves | Spotted B-75 Beast 1745 | -7/Lower Caves | Build established: Hacker-Sprinter 1804 | -7/Lower Caves | Core integrity fell below 20% 1832 | -7/Lower Caves | Destroyed by B-75 Beast with Magnetic Acceleration Cannon Last Messages --------------- 01705_ Dropped Phase Shifter. 01706_ Acquired Mak. System Shield. 01708_ Searching scrap... 01708_ Found Weapon Cycler. 01708_ Found Kinecellerator. 01708_ Found Imp. Propulsion Shielding. 01708_ Found 21 Matter. 01716_ Searching scrap... 01716_ Found Powered Hammer. 01716_ Found Adv. Assault Cannon. 01716_ Found EM Pulse Cannon. 01716_ Found 14 Matter. 01775_ Hrd. Light Armor Plating destroyed. 01775_ Knocked back. 01781_ Scythe destroyed. 01791_ VTOL Module severed. 01792_ Acquired VTOL Module. 01803_ Hacking Suite destroyed. 01828_ Structural Scanner destroyed. 01828_ VTOL Module destroyed. Map ----- +----------------------------------------------------+ | ?????????????????????????????????????#### ####### | | ?????????????????????????????????????### ###### | | ?????????????????????????????????????## ##### | | ?????????????????????????????????????## #### | | ?????????????????????????????????????## | | ?????????????????????????????????????## ## | | ?????????????????????????????????????### ## | | ?????????????????????????????????????#### ## | | ??????????????????????????????????????##### ##### | | ???????????????????????????????????????#### ##### | | ?????????????????????????????????????????## ##### | | ?????????????????????????????????????????## ##### | | ?????????????????????????????????????????## ## # | | ?????????????????????????????????????????## | | ?????????????????????????????????????????## | | ????????????????????????????????????????### # | | ???????????????????????????????????????#### # | | ??????????????????????????????????????#### # | | ?????????????????????????????????????#### # | | ????????????????????????????????????#### # | | ????######?######????################## | | ??###############????################# | | ?##### ##### ##???### #### #### | | ?### ######## %## S #### | | ?## ####### ## ######## ### | | ### ### @ #### ######## ##### | | ### % #### ####### ###### | | ## l ### ### ###??# | | #### ### #####? | | % ##### ### ####### | | % ## ######## ######## | | ## g ;#### ###### #######?## | | #### ####### ###### ###?????### | | ####### BB ####### ################### | | #?###### BB ##???## ############ | | ####?#### ###???## ##### ##?## | | ######## ####???## ####### ##?## | | ##### ###????## ############## ##??# | | ### # ##?????## ############## ##### | | # ### ###?????## ####### ##### | | #### #####????### /]#### ### | | ## #### #####??###### ### %### | | ## #### # ####?### ## ##### ]## | | ####### # ###### # ##### # | | ######### ##### # ##?## | | #### #### ##### ###?## ## | | #### #### ##### # ##### # """ | | ##### ### ## #### # """""" | | ###### ### #### ### """ """ | | ### # # ### ## """ | +----------------------------------------------------+ Best States ------------- Heat Dissipation 34 Energy Generation 15 Energy Capacity 150 Matter Stores 300 Matter Capacity 450 Sight Range 20 Terrain Scan Density 210 Corruption Block 8 Armor Coverage 150 Evasion (%) 64 Targeting Accuracy 6 Melee Accuracy 5 Launcher Accuracy 20 Offensive Hacking 30 Authchip Count 1 Item Schematics ----------------- None Robot Schematics ------------------ None Fabricated ------------ Nothing Alien Tech Used ----------------- None Achievements -------------- None Challenges ------------ None Game ------ Seed SkeletonLayeredMatrix Manual? 0 Play Time 00:54:29 Cumulative 175.8 hours Start 2022.05.03 @ 19:30:16 End 2022.05.03 @ 20:30:56 Sessions 1 Manual Loads 0 Difficulty Rogue Special Mode None Game No. 305 Rogue 304 Adventurer 0 Explorer 1 Win Type - Total 8 Types 8/0/0/0/0/0/0/0/0 Lore% 61 Gallery% 64 Achievement% 53 Wizard Run 0 Options --------- ASCII 1 Keyboard 0 Movement Vi Keybinds 0 Fullscreen 1 Font 18/SmallcapsGlow Map View 76x50 Tactical HUD 1 Map Filters NONE Filters NONE Steam 1 RUN: 6865bb19-f833-44eb-baef-a04ec3b3be7c